bitfinex/quotes_SOLUSD_20240620
["timestamp","ask_amount","ask_price","bid_price","bid_amount"]
[1718883632116,20.0,140.2,140.14,7.1357]
[1718883632721,20.0,140.2,140.15,7.3051]
[1718883632918,20.0,140.2,140.15,0.17]
[1718883634628,20.0,140.2,140.16,7.1343]
[1718883634805,20.0,140.2,140.17,0.34]
[1718883635006,20.0,140.2,140.15,0.17]
[1718883635308,20.0,140.2,140.15,7.6451]
[1718883636906,20.0,140.2,140.16,7.1346]
[1718883637524,20.0,140.2,140.15,7.6451]
[1718883639908,20.0,140.2,140.15,0.51]
[1718883640528,20.0,140.2,140.16,7.1345]
[1718883640910,20.0,140.2,140.15,7.645]
[1718883641905,20.0,140.2,140.16,7.3046]
[1718883642211,20.0,140.2,140.17,7.474]
[1718883642414,20.0,140.2,140.18,0.17]
[1718883642622,20.0,140.24,140.19,7.1331]
[1718883643010,20.0,140.24,140.2,7.4726]
[1718883643213,22.9212,140.25,140.2,7.4726]
[1718883643214,22.9212,140.25,140.2,0.51]
[1718883643424,6.6449,140.25,140.21,0.34]
[1718883643604,6.6453,140.3,140.22,0.17]
[1718883644137,6.6453,140.3,140.18,7.1335]
[1718883644340,25.75,140.29,140.17,0.17]
[1718883644634,16.3382,140.25,140.09,61.2044]
[1718883644843,16.3382,140.25,140.09,41.2044]
[1718883644844,20.0,140.24,140.09,41.2044]
[1718883645016,20.0,140.24,140.15,7.1351]
[1718883645322,15.871,140.22,140.05,22.1658]
[1718883645519,25.92,140.2,140.11,7.137]
[1718883645729,20.0,140.19,140.05,47.9158]
[1718883646113,20.0,140.19,140.13,7.1361]
[1718883646327,20.0,140.21,140.14,7.1355]
[1718883646538,20.0,140.21,140.13,0.17]
[1718883646710,20.0,140.21,140.14,0.17]
[1718883646915,20.0,140.21,140.13,7.476]
[1718883647315,20.0,140.21,140.13,0.34]
[1718883647615,20.0,140.21,140.13,7.476]
[1718883648027,20.0,140.21,140.13,0.34]
[1718883648815,20.0,140.21,140.14,0.17]
[1718883649021,6.4182,140.23,140.14,0.34]
[1718883649424,6.4182,140.23,140.18,7.1335]
[1718883649742,6.4182,140.23,140.19,0.17]
[1718883650246,6.4182,140.23,140.18,7.1335]
[1718883650547,20.0,140.22,140.17,0.17]
[1718883650845,20.0,140.22,140.12,0.17]
[1718883651044,20.0,140.22,140.14,7.1353]
[1718883651416,20.0,140.22,140.15,7.1352]
[1718883651647,20.0,140.22,140.08,6.5393]
[1718883651844,15.7365,140.21,140.08,6.5393]
[1718883652141,20.0,140.2,140.13,7.1361]
[1718883652342,20.0,140.2,140.12,7.1365]
[1718883652718,15.7365,140.21,140.08,6.5393]
[1718883653038,20.0,140.2,140.17,7.1337]
[1718883653617,15.7365,140.21,140.16,0.17]
[1718883653916,6.4182,140.23,140.19,7.1328]
[1718883654116,20.0,140.22,140.19,7.1328]
[1718883655447,16.4466,140.24,140.17,0.17]
[1718883655653,16.4466,140.24,140.19,7.1331]
[1718883655938,16.4466,140.24,140.19,7.1329]
[1718883656318,16.4466,140.24,140.18,7.1335]
[1718883656733,20.0,140.23,140.18,7.1335]
[1718883657152,6.6053,140.22,140.07,15.8492]
[1718883657449,20.0,140.21,140.09,45.75]
[1718883657633,20.0,140.21,140.18,7.1335]
[1718883657834,47.4937,140.26,140.14,22.1197]
[1718883658136,21.7437,140.26,140.21,7.1321]
[1718883658343,21.7437,140.26,140.14,22.1197]
[1718883658552,21.7437,140.26,140.15,20.68]
[1718883658721,21.7437,140.26,140.2,7.1325]
[1718883658928,21.7437,140.26,140.2,7.1324]
[1718883659122,21.7437,140.26,140.21,7.1321]
[1718883659429,20.0,140.25,140.2,7.3024]
[1718883659754,20.0,140.25,140.21,7.302]
[1718883660526,20.0,140.25,140.21,0.17]
[1718883660759,21.7437,140.26,140.2,0.34]
[1718883661256,22.4014,140.3,140.2,0.34]
[1718883661430,22.4014,140.3,140.22,0.17]
[1718883661750,22.4014,140.3,140.23,7.131]
[1718883662244,22.4014,140.3,140.25,7.13]
[1718883662441,22.4014,140.3,140.26,0.17]
[1718883662659,6.2094,140.3,140.26,0.34]
[1718883662843,22.1878,140.33,140.28,7.1282]
[1718883663348,20.0,140.32,140.28,7.1282]
[1718883663556,21.9581,140.37,140.3,7.1272]
[1718883663736,20.0,140.36,140.3,7.1272]
[1718883663937,20.0,140.36,140.31,7.127]
[1718883664128,21.9581,140.37,140.27,0.17]
[1718883664328,21.9581,140.37,140.27,0.51]
[1718883664555,21.9581,140.37,140.3,7.1271]
[1718883665656,21.9581,140.37,140.28,0.17]
[1718883665657,25.75,140.4,140.29,15.0422]
[1718883665827,13.67395212,140.41,140.3,0.68]
[1718883666030,6.2609,140.41,140.3,0.68]
[1718883666653,6.2609,140.41,140.32,7.1261]
[1718883666850,6.2609,140.41,140.3,0.34]
[1718883667061,25.75,140.39,140.25,41.2648]
[1718883667232,31.9227,140.39,140.26,0.17]
[1718883667562,0.17,140.38,140.29,7.1278]
[1718883667732,20.17,140.38,140.29,7.1278]
[1718883667931,20.17,140.38,140.31,7.1268]
[1718883668158,20.17,140.38,140.3,7.1274]
[1718883668531,20.0,140.38,140.24,45.75]
[1718883668735,6.1727,140.39,140.28,0.17]
[1718883668946,6.1727,140.39,140.34,7.1252]
[1718883669157,6.1727,140.39,140.28,0.68]
[1718883669547,6.1727,140.39,140.37,7.1236]
[1718883669856,6.1727,140.39,140.37,7.124]
[1718883670032,6.1727,140.39,140.36,7.1243]
[1718883670233,6.1727,140.39,140.37,7.1237]
[1718883670458,15.6334,140.4,140.36,7.1243]
[1718883670962,15.6334,140.4,140.37,7.1236]
[1718883671764,15.6334,140.4,140.36,7.1244]
[1718883672061,15.6334,140.4,140.37,7.124]
[1718883672842,15.6334,140.4,140.36,7.1243]
[1718883673540,15.6334,140.4,140.37,7.124]
[1718883673741,15.6334,140.4,140.36,7.1243]
[1718883673964,15.6334,140.4,140.35,7.1248]
[1718883674264,22.0284,140.44,140.24,22.1211]
[1718883674478,0.17,140.43,140.36,7.1244]
[1718883674654,0.17,140.43,140.35,7.1248]
[1718883675282,0.17,140.43,140.29,25.75]
[1718883675479,0.17,140.43,140.37,7.1239]
[1718883675655,20.0,140.43,140.37,7.1239]
[1718883675863,20.0,140.43,140.38,7.1235]
[1718883676563,20.0,140.43,140.33,0.17]
[1718883676768,20.0,140.43,140.35,7.1247]
[1718883677068,20.0,140.43,140.33,0.68]
[1718883677069,20.0,140.43,140.37,7.1236]
[1718883677252,20.0,140.43,140.36,7.2942]
[1718883677455,20.0,140.43,140.35,7.1249]
[1718883677756,20.0,140.43,140.35,7.1246]
[1718883677956,20.0,140.43,140.34,7.2953]
[1718883678182,0.68,140.42,140.33,7.1258]
[1718883678385,0.68,140.42,140.34,7.1254]
[1718883678561,0.68,140.42,140.28,31.8]
[1718883678768,0.68,140.42,140.29,20.0]
[1718883678769,0.17,140.42,140.29,20.0]
[1718883679072,13.11121134,140.46,140.29,20.0]
[1718883679387,47.1506,140.49,140.4,7.1223]
[1718883679571,47.1506,140.49,140.35,0.17]
[1718883679876,47.1506,140.49,140.38,7.1231]
[1718883680101,47.1506,140.49,140.37,7.1238]
[1718883680463,20.0,140.48,140.38,7.1234]
[1718883680982,0.68,140.47,140.38,7.1234]
[1718883681179,6.1647,140.46,140.37,7.1238]
[1718883681440,6.1647,140.46,140.35,7.1246]
[1718883681441,0.17,140.44,140.35,7.1246]
[1718883681594,0.34,140.44,140.35,7.1246]
[1718883681800,15.0019,140.4,140.28,31.8]
[1718883682237,20.0,140.39,140.28,31.8]
[1718883682717,15.0019,140.4,140.28,31.8]
[1718883682908,15.0019,140.4,140.36,7.1243]
[1718883683498,15.0019,140.4,140.35,7.1248]
[1718883683700,15.0019,140.4,140.33,7.1258]
[1718883685021,15.0019,140.4,140.34,7.1253]
[1718883685231,15.0019,140.4,140.29,0.17]
[1718883685232,15.0019,140.4,140.35,7.1245]
[1718883685905,22.8157,140.44,140.36,0.17]
[1718883686105,253.4,140.52,140.39,7.1228]
[1718883686106,22.8157,140.48,140.39,7.1228]
[1718883686319,22.8157,140.48,140.4,7.1221]
[1718883687412,0.17,140.47,140.4,7.1221]
[1718883687624,20.34,140.47,140.4,7.1221]
[1718883688531,22.8248,140.49,140.37,26.09]
[1718883688719,22.8248,140.49,140.43,7.1206]
[1718883688901,22.8248,140.49,140.44,7.1203]
[1718883689104,22.8248,140.49,140.43,7.1208]
[1718883689304,22.8248,140.49,140.41,0.17]
[1718883689520,22.8248,140.49,140.46,7.1193]
[1718883689739,22.8248,140.49,140.41,0.51]
[1718883689740,22.8248,140.49,140.45,7.1198]
[1718883690816,22.8248,140.49,140.44,7.1202]
[1718883691015,22.8804,140.52,140.45,0.17]
[1718883691217,22.8804,140.52,140.42,0.17]
[1718883691408,22.8804,140.52,140.5,7.1171]
[1718883691409,6.3743,140.52,140.5,7.1171]
[1718883691814,15.8395,140.55,140.5,7.1171]
[1718883692230,15.8395,140.55,140.49,7.1178]
[1718883693334,20.0,140.54,140.49,7.1178]
[1718883693517,20.0,140.54,140.46,7.1189]
[1718883693719,20.0,140.54,140.47,7.1187]
[1718883694219,20.0,140.54,140.45,0.17]
[1718883694220,20.0,140.54,140.45,7.1194]
[1718883694411,20.0,140.54,140.43,25.75]
[1718883694412,20.0,140.54,140.46,7.1192]
[1718883695129,20.0,140.54,140.45,7.1199]
[1718883695420,0.34,140.53,140.46,7.1193]
[1718883696039,0.34,140.53,140.45,7.1199]
[1718883696331,15.2419,140.5,140.4,25.75]
[1718883696543,15.2419,140.5,140.42,7.1213]
[1718883696743,20.0,140.49,140.42,7.1213]
[1718883697747,20.0,140.49,140.41,17.8046]
[1718883698041,20.0,140.49,140.4,0.17]
[1718883698042,20.0,140.49,140.42,7.1213]
[1718883698746,6.3781,140.48,140.38,17.8076]
[1718883699039,20.0,140.47,140.41,7.1219]
[1718883699444,20.0,140.47,140.38,17.8076]
[1718883699633,20.0,140.47,140.4,7.1221]
[1718883699818,20.0,140.47,140.41,7.1218]
[1718883700020,20.0,140.47,140.38,17.8076]
[1718883700222,25.75,140.51,140.4,15.4498]
[1718883700423,28.90474831,140.57,140.5,7.1173]
[1718883700645,21.499,140.57,140.47,17.7973]
[1718883700941,21.499,140.57,140.49,7.1175]
[1718883701442,21.499,140.57,140.46,26.26]
[1718883701647,21.499,140.57,140.46,25.75]
[1718883701948,25.75,140.56,140.45,7.1198]
[1718883702121,0.17,140.55,140.45,7.1198]
[1718883702318,0.17,140.55,140.46,7.1194]
[1718883702533,0.34,140.55,140.46,7.1194]
[1718883702721,0.34,140.54,140.46,7.1194]
[1718883702927,15.1955,140.52,140.35,34.92595136]
[1718883703243,15.1955,140.52,140.48,7.1181]
[1718883703544,15.1955,140.52,140.45,7.1195]
[1718883703747,15.1955,140.52,140.41,0.34]
[1718883703948,15.1955,140.52,140.41,20.34]
[1718883704333,15.1955,140.52,140.46,7.1194]
[1718883704742,20.0,140.51,140.44,7.1201]
[1718883704960,20.0,140.51,140.43,7.1208]
[1718883705456,0.34,140.5,140.42,7.1213]
[1718883705840,30.09228419,140.6,140.46,25.75]
[1718883706149,30.09228419,140.6,140.47,20.0]
[1718883706654,30.09228419,140.6,140.5,7.1169]
[1718883706860,30.09228419,140.6,140.49,7.1177]
[1718883707037,35.79665301,140.6,140.49,7.1177]
[1718883707238,35.79665301,140.6,140.51,7.1168]
[1718883707447,30.09228419,140.6,140.51,7.1168]
[1718883707754,30.09228419,140.6,140.49,7.1177]
[1718883708258,20.0,140.59,140.5,7.1174]
[1718883708561,0.51,140.58,140.5,7.1174]
[1718883708739,0.51,140.58,140.49,7.1177]
[1718883709834,6.3477,140.57,140.49,7.1177]
[1718883710055,16.517,140.55,140.45,17.7998]
[1718883710377,16.517,140.55,140.43,22.9431]
[1718883710562,16.517,140.55,140.44,37.8011]
[1718883710852,20.0,140.54,140.44,37.8011]
[1718883711443,20.0,140.54,140.45,0.68]
[1718883711768,20.0,140.54,140.47,7.1187]
[1718883711958,0.17,140.53,140.46,7.1192]
[1718883712155,6.3477,140.52,140.45,7.1199]
[1718883712669,6.3477,140.52,140.47,7.1188]
[1718883712862,6.3477,140.52,140.45,7.1195]
[1718883713063,6.3477,140.52,140.44,7.1202]
[1718883713265,6.3477,140.52,140.45,7.1198]
[1718883713943,6.3477,140.52,140.44,7.1203]
[1718883714252,6.3477,140.52,140.45,7.1199]
[1718883714567,6.3477,140.52,140.4,33.2497]
[1718883714755,20.0,140.51,140.43,7.1206]
[1718883715190,20.0,140.51,140.41,0.17]
[1718883715352,20.0,140.51,140.41,20.68]
[1718883716057,20.0,140.51,140.44,7.1204]
[1718883716258,20.0,140.51,140.43,7.1207]
[1718883716446,20.0,140.51,140.44,7.1204]
[1718883717072,16.1222,140.5,140.43,7.1209]
[1718883717372,20.34,140.49,140.42,7.1213]
[1718883717960,20.34,140.49,140.41,7.1218]
[1718883718570,6.6309,140.48,140.35,29.84]
[1718883718866,36.6633,140.47,140.37,7.1238]
[1718883719090,36.6633,140.47,140.38,7.1233]
[1718883719271,0.17,140.45,140.38,7.1233]
[1718883719470,20.51,140.45,140.37,7.1238]
[1718883719885,0.17,140.43,140.36,7.1244]
[1718883720087,20.68,140.43,140.36,7.1244]
[1718883720295,20.68,140.43,140.35,7.1248]
[1718883720479,0.17,140.41,140.34,7.1253]
[1718883720688,20.34,140.41,140.34,7.1253]
[1718883721598,20.0,140.41,140.34,17.8137]
[1718883721794,20.0,140.41,140.35,7.125]
[1718883722099,20.0,140.41,140.35,7.1248]
[1718883722875,20.0,140.41,140.34,7.1254]
[1718883723402,20.0,140.41,140.26,29.84]
[1718883723403,16.148,140.39,140.26,29.84]
[1718883723603,0.17,140.38,140.31,7.127]
[1718883723774,20.34,140.38,140.31,7.127]
[1718883724177,20.34,140.38,140.32,7.1265]
[1718883724385,20.34,140.38,140.31,7.1268]
[1718883724676,6.3283,140.37,140.3,7.1274]
[1718883724881,0.17,140.36,140.27,17.8216]
[1718883725096,20.51,140.36,140.28,7.1282]
[1718883725606,20.51,140.36,140.29,7.128]
[1718883725910,20.51,140.36,140.28,7.1283]
[1718883726198,20.51,140.36,140.28,7.1284]
[1718883726408,6.2732,140.33,140.21,29.84]
[1718883726586,0.17,140.31,140.17,16.2757]
[1718883726795,0.17,140.31,140.23,7.1307]
[1718883727091,0.17,140.31,140.25,7.1297]
[1718883727480,0.17,140.31,140.24,7.1304]
[1718883727686,0.17,140.31,140.23,7.1309]
[1718883727881,0.17,140.31,140.22,7.1314]
[1718883728085,0.17,140.31,140.18,29.84]
[1718883728306,0.17,140.31,140.23,7.1308]
[1718883729202,0.17,140.31,140.22,7.1315]
[1718883729203,0.17,140.29,140.22,7.1315]
[1718883729397,20.34,140.29,140.22,7.1315]
[1718883729911,0.17,140.27,140.18,7.1333]
[1718883730099,0.17,140.27,140.19,7.133]
[1718883730289,20.34,140.27,140.18,7.1334]
[1718883730488,20.34,140.27,140.16,17.836]
[1718883730693,20.34,140.27,140.19,7.133]
[1718883730993,20.34,140.27,140.2,7.1325]
[1718883731193,20.34,140.27,140.19,7.1327]
[1718883731403,20.34,140.27,140.2,7.1325]
[1718883731587,20.0,140.27,140.21,7.1316]
[1718883731893,20.0,140.27,140.22,7.1314]
[1718883732204,20.0,140.27,140.17,17.8343]
[1718883732404,20.0,140.27,140.18,0.17]
[1718883732589,20.0,140.27,140.2,7.1322]
[1718883732788,0.17,140.26,140.14,17.8383]
[1718883732989,0.34,140.26,140.15,0.34]
[1718883733207,0.34,140.26,140.15,0.68]
[1718883733411,0.34,140.26,140.18,7.1333]
[1718883734114,0.34,140.26,140.12,52.2398]
[1718883734291,0.34,140.26,140.2,7.1324]
[1718883734489,20.0,140.27,140.2,7.1324]
[1718883735609,20.0,140.27,140.19,7.133]
[1718883735991,0.34,140.26,140.19,7.1326]
[1718883736314,0.34,140.26,140.16,17.8366]
[1718883736315,0.17,140.26,140.16,17.8366]
[1718883736612,0.17,140.26,140.19,7.133]
[1718883737317,0.17,140.26,140.2,7.1326]
[1718883737692,0.17,140.26,140.19,7.1331]
[1718883737920,0.17,140.26,140.18,7.1335]
[1718883737921,16.2863,140.25,140.18,7.1335]
[1718883738297,16.2863,140.25,140.17,7.1339]
[1718883738910,20.0,140.24,140.17,7.1337]
[1718883739295,20.0,140.24,140.18,7.1334]
[1718883740311,20.0,140.24,140.16,17.8356]
[1718883740501,20.0,140.24,140.19,7.1329]
[1718883741517,20.0,140.24,140.18,7.1334]
[1718883741907,20.0,140.24,140.17,0.17]
[1718883741908,20.0,140.24,140.17,7.3041]
[1718883742220,20.0,140.24,140.17,7.1341]
[1718883742429,20.0,140.24,140.13,17.8396]
[1718883742634,6.3605,140.23,140.14,7.1353]
[1718883742917,6.3605,140.23,140.15,7.1349]
[1718883743498,6.3605,140.23,140.16,7.1346]
[1718883743915,20.0,140.22,140.15,7.135]
[1718883744934,20.0,140.22,140.08,21.3019]
[1718883745229,20.0,140.22,140.13,7.1362]
[1718883745619,20.0,140.22,140.14,7.1357]
[1718883745816,20.0,140.22,140.13,7.136]
[1718883745817,0.17,140.21,140.13,7.136]
[1718883746020,0.51,140.21,140.13,7.136]
[1718883746234,20.0,140.22,140.13,7.136]
[1718883746434,20.0,140.22,140.08,21.3019]
[1718883746735,20.0,140.22,140.16,7.1343]
[1718883746904,20.0,140.22,140.15,7.1351]
[1718883747105,15.1797,140.21,140.11,7.1372]
[1718883747327,6.2519,140.2,140.05,35.8721]
[1718883747503,0.17,140.19,140.1,7.1375]
[1718883747705,0.68,140.19,140.11,7.1371]
[1718883748931,0.68,140.19,140.1,7.1375]
[1718883749135,0.68,140.19,140.11,7.1372]
[1718883750139,0.68,140.19,140.1,7.1375]
[1718883750432,0.51,140.19,140.11,7.1368]
[1718883750622,0.34,140.19,140.11,7.1368]
[1718883751100,0.34,140.19,140.1,7.1376]
[1718883751309,6.3211,140.16,140.06,7.1394]
[1718883751618,6.3211,140.16,140.07,7.1392]
[1718883751819,20.0,140.15,140.07,7.1392]
[1718883752400,20.0,140.15,140.03,17.8532]
[1718883752401,16.19,140.14,140.05,7.1398]
[1718883752604,20.0,140.13,140.05,7.1398]
[1718883752907,0.34,140.12,140.04,7.1407]
[1718883753120,0.34,140.12,140.0,47.8564]
[1718883753326,0.34,140.12,140.03,7.1409]
[1718883753520,20.17,140.13,140.01,17.8546]
[1718883753833,0.51,140.12,140.04,7.1405]
[1718883754308,0.51,140.12,140.03,7.1411]
[1718883754727,6.4891,140.11,140.03,7.1411]
[1718883754926,6.4891,140.11,140.0,30.0]
[1718883754927,15.5957,140.09,140.02,7.1417]
[1718883755106,20.0,140.08,140.02,7.1417]
[1718883755507,0.17,140.06,139.93,30.0]
[1718883755725,0.17,140.06,139.98,7.1437]
[1718883755907,20.0,140.06,139.99,7.143]
[1718883756324,0.17,140.05,139.92,17.8665]
[1718883756538,0.34,140.05,139.96,7.1445]
[1718883757028,0.34,140.05,139.92,17.8665]
[1718883757029,0.34,140.05,139.97,7.1443]
[1718883757244,0.17,140.05,139.96,7.1448]
[1718883757433,0.34,140.05,139.96,7.1448]
[1718883758033,0.17,140.04,139.92,17.8665]
[1718883758234,0.17,140.04,139.96,7.1448]
[1718883758730,0.51,140.05,139.96,7.1448]
[1718883759531,0.51,140.05,139.97,7.1441]
[1718883759931,0.17,140.03,139.91,7.147]
[1718883760251,20.68,140.03,139.92,7.1466]
[1718883760440,0.17,140.01,139.92,7.1466]
[1718883760753,0.17,140.01,139.88,47.8723]
[1718883760754,20.34,140.01,139.88,30.0]
[1718883761059,0.17,140.0,139.89,7.1483]
[1718883761226,6.6523,139.96,139.82,21.4417]
[1718883761427,20.0,139.95,139.86,7.1496]
[1718883761626,20.0,139.95,139.85,7.1503]
[1718883761827,20.0,139.95,139.86,7.1499]
[1718883764229,20.0,139.95,139.88,7.1488]
[1718883765534,20.0,139.95,139.89,0.34]
[1718883765736,20.0,139.95,139.87,7.4893]
[1718883768237,20.0,139.95,139.89,7.1481]
[1718883768434,20.0,139.95,139.9,0.17]
[1718883768762,20.0,139.95,139.89,7.1481]
[1718883768939,20.0,139.95,139.9,7.3178]
[1718883769131,20.0,139.95,139.88,0.34]
[1718883769333,20.0,139.95,139.88,0.17]
[1718883770553,20.0,139.95,139.88,7.6588]
[1718883771065,20.0,139.95,139.88,0.17]
[1718883771867,20.0,139.95,139.88,7.3188]
[1718883772238,20.0,139.95,139.88,0.17]
[1718883772557,20.0,139.95,139.85,7.1505]
[1718883772741,20.0,139.95,139.84,0.17]
[1718883773073,20.0,139.95,139.87,7.1491]
[1718883773361,20.0,139.95,139.86,7.3198]
[1718883773532,20.0,139.95,139.87,0.17]
[1718883774051,20.0,139.95,139.86,7.6598]
[1718883774243,20.0,139.95,139.87,7.3194]
[1718883774665,20.0,139.95,139.87,0.17]
[1718883775334,20.0,139.95,139.87,7.3194]
[1718883775565,20.0,139.95,139.88,0.51]
[1718883775860,20.0,139.95,139.88,0.34]
[1718883776167,20.0,139.95,139.88,0.17]
[1718883776464,20.0,139.95,139.87,0.17]
[1718883776640,20.0,139.95,139.87,0.68]
[1718883777861,6.6523,139.96,139.9,0.17]
[1718883778068,6.6523,139.96,139.91,7.1473]
[1718883778265,6.6523,139.96,139.92,0.51]
[1718883778441,6.6523,139.96,139.9,7.8277]
[1718883778839,6.6523,139.96,139.8,9.979991]
[1718883779056,6.6523,139.96,139.83,17.8787]
[1718883779255,6.6523,139.96,139.87,7.1491]
[1718883779443,6.6523,139.96,139.87,7.1494]
[1718883779840,6.6523,139.96,139.86,27.9498]
[1718883780260,20.0,139.95,139.87,0.51]
[1718883780839,20.0,139.95,139.88,7.1487]
[1718883781148,20.0,139.95,139.87,0.68]
[1718883781352,20.0,139.95,139.88,7.3187]
[1718883781547,20.0,139.95,139.89,7.4884]
[1718883781774,20.0,139.95,139.89,0.17]
[1718883781953,20.0,139.95,139.88,0.34]
[1718883782144,20.0,139.95,139.88,7.4889]
[1718883782540,16.0277,139.94,139.86,20.8]
[1718883782740,16.1977,139.92,139.8,7.1527]
[1718883782950,6.7956,139.9,139.8,25.8]
[1718883783165,20.0,139.89,139.85,7.1503]
[1718883783364,20.0,139.89,139.82,25.8]
[1718883783669,20.0,139.89,139.82,32.952]
[1718883784160,20.0,139.89,139.82,25.8]
[1718883784571,16.494,139.97,139.88,25.8]
[1718883784740,16.494,139.97,139.93,25.8]
[1718883784945,6.2443,140.0,139.93,32.9463]
[1718883785141,6.2443,140.0,139.93,25.8]
[1718883785567,6.2443,140.0,139.96,0.17]
[1718883785749,22.7383,140.04,139.96,32.9447]
[1718883785951,22.7383,140.04,139.97,7.4843]
[1718883786267,22.7383,140.04,139.98,0.17]
[1718883786673,22.7383,140.04,139.97,0.34]
[1718883786872,20.0,140.03,139.96,26.14]
[1718883787075,20.0,140.03,139.97,0.17]
[1718883788051,20.0,140.03,139.89,15.3852]
[1718883788665,20.0,140.03,139.94,7.1456]
[1718883789170,20.0,140.03,139.89,33.2562]
[1718883789370,20.0,140.03,139.9,20.68]
[1718883789672,20.0,140.03,139.93,0.17]
[1718883789870,20.0,140.03,139.93,0.68]
[1718883790645,15.251,140.0,139.88,7.1488]
[1718883790846,20.0,139.99,139.88,7.1488]
[1718883791460,20.0,139.99,139.86,33.8089]
[1718883791461,20.0,139.99,139.89,7.1484]
[1718883792469,20.0,139.99,139.85,6.0192]
[1718883792470,0.34,139.98,139.85,6.0192]
[1718883792688,0.34,139.98,139.89,7.1481]
[1718883792879,20.0,139.99,139.9,7.1478]
[1718883793475,20.0,139.99,139.89,7.1483]
[1718883793772,20.0,139.99,139.89,7.4883]
[1718883793969,20.0,139.99,139.9,7.1478]
[1718883794376,0.17,139.98,139.89,0.34]
[1718883794676,20.0,139.99,139.89,0.34]
[1718883795280,20.0,139.99,139.94,7.1457]
[1718883795656,20.0,139.99,139.95,7.3153]
[1718883796051,20.0,139.99,139.96,7.3147]
[1718883796360,15.081,140.0,139.97,0.17]
[1718883796558,15.081,140.0,139.95,7.3152]
[1718883796759,15.081,140.0,139.96,0.51]
[1718883798165,15.081,140.0,139.91,30.06]
[1718883798376,20.0,139.99,139.94,0.17]
[1718883799063,20.0,139.99,139.93,7.3164]
[1718883799656,20.0,139.99,139.92,7.1468]
[1718883799978,20.0,139.99,139.87,33.5334]
[1718883800163,20.0,139.99,139.88,7.1485]
[1718883800886,20.0,139.99,139.89,7.1484]
[1718883801895,20.0,139.99,139.92,7.1468]
[1718883802199,20.0,139.99,139.91,0.34]
[1718883802368,20.0,139.99,139.92,7.4867]
[1718883802573,20.0,139.99,139.93,0.17]
[1718883802787,20.0,139.99,139.93,7.3163]
[1718883802985,20.0,139.99,139.94,7.1456]
[1718883803188,20.0,139.99,139.95,7.1452]
[1718883803590,20.0,139.99,139.94,7.4857]
[1718883803777,20.0,139.99,139.95,7.4853]
[1718883803987,20.0,139.99,139.95,7.3152]